[Event "3rd Memorial Warakomska 2019"]
[Site "Suwalki"]
[Date "2019.08.05"]
[Round "1.45"]
[White "Fiedorek, Michal"]
[Black "Czarniecka, Aleksandra"]
[Result "1-0"]
[ECO "B80"]
[WhiteElo "2241"]
[BlackElo "2042"]
[Annotator "NA"]
[PlyCount "81"]
[EventDate "2019.08.05"]
[EventType "swiss"]
[EventCountry "POL"]
[SourceTitle "playchess.com"]
[Source "ChessBase"]
[SourceQuality "1"]
[TimeControl "40/5400+30:1800+30"]

1. e4 {[%emt 0:00:00]} c5 {[%emt 0:00:00]} 2. Nf3 {[%emt 0:00:00]} d6 {[%emt 0:00:11]} 3. d4 {[%emt 0:00:14]} cxd4 {[%emt 0:00:14]} 4. Nxd4 {[%emt 0:00:14]} Nf6 {[%emt 0:00:06]} 5. Nc3 {[%emt 0:00:16]} e6 {[%emt 0:00:57]} 6. Be3 {[%emt 0:00:41]} Nc6 {[%emt 0:01:55]} 7. f3 {[%emt 0:01:45]} Be7 {[%emt 0:04:49]} 8. Qd2 {[%emt 0:01:44]} O-O {[%emt 0:06:28]} 9. O-O-O {[%emt 0:09:24]} d5 {[%emt 0:05:00]} 10. exd5 {[%emt 0:23:10]} Nxd5 {[%emt 0:10:52]} 11. Nxd5 {[%emt 0:03:01]} Qxd5 {[%emt 0:07:18]} 12. Nb3 {[%emt 0:06:59]} Qxd2+ {[%emt 0:04:10]} 13. Rxd2 {[%emt 0:02:30]} Nb4 {[%emt 0:06:50]} 14. Kb1 {[%emt 0:05:21]} Nd5 {[%emt 0:02:10]} 15. Bc5 {[%emt 0:07:13]} Bxc5 {[%emt 0:09:16]} 16. Nxc5 {[%emt 0:00:34]} b6 {[%emt 0:00:41]} 17. Ne4 {[%emt 0:06:30]} Bb7 {[%emt 0:07:17]} 18. Bb5 {[%emt 0:03:30]} Nc7 {[%emt 0:07:24]} 19. Ba4 {[%emt 0:10:31]} Bxe4 {[%emt 0:07:14]} 20. fxe4 {[%emt 0:00:06]} b5 {[%emt 0:00:20]} 21. Rd7 {[%emt 0:04:15]} Rac8 {[%emt 0:02:39]} 22. Bb3 {[%emt 0:00:15]} a5 {[%emt 0:00:30]} 23. a4 {[%emt 0:04:09]} b4 {[%emt 0:06:42]} 24. Rhd1 {[%emt 0:07:49]} Na6 {[%emt 0:05:01]} 25. Ra7 {[%emt 0:00:56]} Ra8 {[%emt 0:01:14]} 26. Rdd7 {[%emt 0:00:46]} Nc5 {[%emt 0:00:43]} 27. Rxf7 {[%emt 0:00:45]} Rxa7 {[%emt 0:01:51]} 28. Rxa7 {[%emt 0:00:08]} Nxb3 {[%emt 0:01:27]} 29. cxb3 {[%emt 0:00:06]} Rf4 {[%emt 0:00:28]} 30. e5 {[%emt 0:00:41]} Rf2 {[%emt 0:00:35]} 31. Rxa5 {[%emt 0:00:15]} Rxg2 {[%emt 0:00:03]} 32. Ra8+ {[%emt 0:01:33]} Kf7 {[%emt 0:00:06]} 33. a5 {[%emt 0:00:27]} Rd2 {[%emt 0:01:01]} 34. a6 {[%emt 0:00:18]} Rd5 {[%emt 0:00:27]} 35. a7 {[%emt 0:00:36]} Ra5 {[%emt 0:00:06]} 36. Kc2 {[%emt 0:00:11]} Kg6 {[%emt 0:01:14]} 37. Kd3 {[%emt 0:00:31]} Kg5 {[%emt 0:00:21]} 38. Kc4 {[%emt 0:00:23]} Kg4 {[%emt 0:00:25]} 39. Kxb4 {[%emt 0:00:11]} Ra1 {[%emt 0:00:04]} 40. Kc5 {[%emt 0:00:00]} g5 {[%emt 0:00:00]} 41. b4 {[%emt 0:02:28]} 1-0

[Event "3rd Memorial Warakomska 2019"]
[Site "Suwalki"]
[Date "2019.08.06"]
[Round "2.1"]
[White "Kosakowski, Jakub"]
[Black "Iturrizaga Bonelli, Eduardo"]
[Result "1-0"]
[ECO "B42"]
[WhiteElo "2394"]
[BlackElo "2625"]
[Annotator "ChessBase"]
[PlyCount "79"]
[EventDate "2019.08.05"]
[EventType "swiss"]
[EventCountry "POL"]
[SourceTitle "playchess.com"]
[Source "ChessBase"]
[SourceQuality "1"]
[TimeControl "40/5400+30:1800+30"]

1. e4 {[%emt 0:00:00]} c5 {[%emt 0:00:00]} 2. Nf3 {[%emt 0:00:00]} e6 {[%emt 0:00:00]} 3. d4 {[%emt 0:00:10]} cxd4 {[%emt 0:00:00]} 4. Nxd4 {[%emt 0:00:06]} a6 {[%emt 0:00:00]} 5. Bd3 {[%emt 0:00:41]} Qc7 {[%emt 0:02:54]} 6. O-O {[%emt 0:00:32]} Nf6 {[%emt 0:00:17]} 7. Qe2 {[%emt 0:00:27]} d6 {[%emt 0:00:04]} 8. f4 {[%emt 0:00:47]} g6 {[%emt 0:00:05]} 9. Nc3 {[%emt 0:00:42]} Bg7 {[%emt 0:00:04]} 10. e5 {[%emt 0:00:36]} dxe5 {[%emt 0:00:04]} 11. Ndb5 {[%emt 0:00:11]} axb5 12. Nxb5 {[%emt 0:00:07]} Qe7 {[%emt 0:13:12]} 13. fxe5 {[%emt 0:00:29]} O-O {[%emt 0:00:07]} 14. exf6 {[%emt 0:00:35]} Bxf6 {[%emt 0:00:05]} 15. c3 {[%emt 0:00:32]} Nc6 {[%emt 0:02:34]} 16. Be3 {[%emt 0:08:06]} Bg5 {[%emt 0:42:28]} 17. Bb6 {[%emt 0:17:40]} Nb8 {[%emt 0:01:37]} 18. b4 {[%emt 0:07:27]} Nd7 {[%emt 0:04:42]} 19. Bc7 {[%emt 0:08:27]} Ra6 {[%emt 0:00:08]} 20. Rad1 {[%emt 0:01:06]} Nf6 {[%emt 0:00:08]} 21. Be5 {[%emt 0:29:22]} Nd5 {[%emt 0:03:02]} 22. Bd4 {[%emt 0:00:14]} Rc6 {[%emt 0:04:32]} 23. Be4 {[%emt 0:09:54]} Rd8 {[%emt 0:05:54]} 24. c4 {[%emt 0:03:26]} Nf4 {[%emt 0:03:56]} 25. Qc2 {[%emt 0:01:08]} e5 {[%emt 0:03:47]} 26. Bf2 {[%emt 0:00:46]} Rxd1 {[%emt 0:02:49]} 27. Rxd1 {[%emt 0:00:05]} Bg4 {[%emt 0:00:03]} 28. Re1 {[%emt 0:02:43]} Ra6 {[%emt 0:05:34]} 29. c5 {[%emt 0:06:12]} Be6 {[%emt 0:00:02]} 30. a3 {[%emt 0:00:51]} f5 {[%emt 0:00:03]} 31. Bd3 Nxd3 32. Qxd3 {[%emt 0:00:02]} e4 {[%emt 0:05:39]} 33. Qc3 {[%emt 0:01:03]} Qd7 {[%emt 0:01:50]} 34. Nd6 {[%emt 0:00:44]} Bd5 {[%emt 0:00:01]} 35. b5 {[%emt 0:01:05]} Ra8 {[%emt 0:00:04]} 36. Qe5 {[%emt 0:00:51]} Qe6 {[%emt 0:00:01]} 37. Qxe6+ Bxe6 {[%emt 0:00:01]} 38. Nxb7 {[%emt 0:00:36]} Rxa3 {[%emt 0:00:04]} 39. c6 {[%emt 0:00:54]} e3 {[%emt 0:02:41]} 40. Bg3 {[%emt 0:00:00]} 1-0

[Event "3rd Memorial Warakomska 2019"]
[Site "Suwalki"]
[Date "2019.08.06"]
[Round "2.2"]
[White "Markowski, Tomasz"]
[Black "Skawinski, Arkadiusz"]
[Result "1-0"]
[ECO "D05"]
[WhiteElo "2537"]
[BlackElo "2398"]
[Annotator "ChessBase"]
[PlyCount "81"]
[EventDate "2019.08.05"]
[EventType "swiss"]
[EventCountry "POL"]
[SourceTitle "playchess.com"]
[Source "ChessBase"]
[SourceQuality "1"]
[TimeControl "40/5400+30:1800+30"]

1. Nf3 {[%emt 0:00:13]} d5 {[%emt 0:00:00]} 2. d4 {[%emt 0:00:20]} e6 {[%emt 0:01:02]} 3. e3 {[%emt 0:00:12]} Nf6 {[%emt 0:00:28]} 4. Bd3 {[%emt 0:00:05]} c5 {[%emt 0:00:53]} 5. b3 {[%emt 0:00:05]} Nc6 {[%emt 0:03:19]} 6. Bb2 {[%emt 0:00:06]} b6 {[%emt 0:00:06]} 7. O-O {[%emt 0:00:18]} Bd6 {[%emt 0:01:09]} 8. Nbd2 {[%emt 0:02:00]} Bb7 {[%emt 0:06:35]} 9. a3 {[%emt 0:02:06]} O-O {[%emt 0:00:06]} 10. dxc5 {[%emt 0:01:08]} bxc5 {[%emt 0:05:43]} 11. c4 {[%emt 0:00:26]} Qe7 {[%emt 0:02:41]} 12. Qc2 {[%emt 0:01:50]} h6 {[%emt 0:03:08]} 13. Rac1 {[%emt 0:02:01]} a5 {[%emt 0:12:22]} 14. cxd5 {[%emt 0:04:45]} exd5 {[%emt 0:00:27]} 15. Nh4 {[%emt 0:06:49]} Be5 {[%emt 0:04:45]} 16. Nf5 {[%emt 0:02:44]} Qe6 {[%emt 0:01:42]} 17. Nf3 {[%emt 0:02:35]} Bxb2 {[%emt 0:04:09]} 18. Qxb2 {[%emt 0:01:22]} Ba6 {[%emt 0:00:52]} 19. Bxa6 {[%emt 0:02:00]} Rxa6 {[%emt 0:00:11]} 20. Ng3 {[%emt 0:00:37]} Ne4 {[%emt 0:15:32]} 21. Rfd1 {[%emt 0:10:13]} Rb6 {[%emt 0:06:43]} 22. Qc2 {[%emt 0:07:59]} f5 {[%emt 0:08:22]} 23. Ne2 {[%emt 0:04:53]} Ne7 {[%emt 0:00:18]} 24. Nf4 {[%emt 0:02:12]} Qd6 {[%emt 0:03:07]} 25. Nd2 {[%emt 0:04:17]} Nxd2 {[%emt 0:07:05]} 26. Rxd2 {[%emt 0:00:05]} Rd8 {[%emt 0:06:36]} 27. g3 {[%emt 0:03:07]} Qb8 {[%emt 0:03:19]} 28. Rcd1 {[%emt 0:02:15]} Rxb3 {[%emt 0:01:04]} 29. Nxd5 {[%emt 0:10:01]} Nxd5 {[%emt 0:00:12]} 30. Rxd5 {[%emt 0:00:38]} Rxd5 {[%emt 0:00:04]} 31. Rxd5 {[%emt 0:00:03]} Rb1+ {[%emt 0:02:51]} 32. Kg2 {[%emt 0:00:08]} Qb7 {[%emt 0:00:04]} 33. Qxf5 {[%emt 0:02:20]} Rd1 {[%emt 0:00:51]} 34. e4 {[%emt 0:00:28]} Rxd5 {[%emt 0:00:10]} 35. Qxd5+ {[%emt 0:05:35]} Qxd5 {[%emt 0:00:27]} 36. exd5 {[%emt 0:00:04]} Kf7 {[%emt 0:00:27]} 37. Kf3 {[%emt 0:00:07]} Ke7 {[%emt 0:00:18]} 38. Ke4 {[%emt 0:00:07]} Kd6 {[%emt 0:00:03]} 39. f4 {[%emt 0:00:30]} h5 {[%emt 0:01:27]} 40. h3 {[%emt 0:00:00]} a4 {[%emt 0:00:00]} 41. g4 {Kxd5+} 1-0

[Event "3rd Memorial Warakomska 2019"]
[Site "Suwalki"]
[Date "2019.08.06"]
[Round "2.3"]
[White "Tihonov, Jurij"]
[Black "Nasuta, Grzegorz"]
[Result "1/2-1/2"]
[ECO "A10"]
[WhiteElo "2393"]
[BlackElo "2529"]
[Annotator "ChessBase"]
[PlyCount "64"]
[EventDate "2019.08.05"]
[EventType "swiss"]
[EventCountry "POL"]
[SourceTitle "playchess.com"]
[Source "ChessBase"]
[SourceQuality "1"]
[TimeControl "40/5400+30:1800+30"]

1. c4 {[%emt 0:00:00]} g6 {[%emt 0:00:00]} 2. Nf3 {[%emt 0:00:19]} Bg7 {[%emt 0:00:24]} 3. e4 {[%emt 0:14:06]} e5 {[%emt 0:00:43]} 4. d4 {[%emt 0:03:22]} exd4 {[%emt 0:00:12]} 5. Nxd4 {[%emt 0:00:10]} Nf6 {[%emt 0:00:15]} 6. Nc3 {[%emt 0:01:57]} O-O {[%emt 0:00:25]} 7. Be3 {[%emt 0:06:00]} c6 {[%emt 0:01:36]} 8. Be2 {[%emt 0:11:08]} Re8 {[%emt 0:08:35]} 9. Bf3 {[%emt 0:06:14]} d6 {[%emt 0:03:09]} 10. Nb3 {[%emt 0:14:32]} Be6 {[%emt 0:42:17]} 11. Be2 {[%emt 0:03:34]} Nbd7 {[%emt 0:09:23]} 12. Qxd6 {[%emt 0:05:39]} Ng4 {[%emt 0:00:43]} 13. Bxg4 {[%emt 0:04:53]} Bxg4 {[%emt 0:00:20]} 14. f3 {[%emt 0:13:08]} Be6 {[%emt 0:00:32]} 15. O-O-O {[%emt 0:02:58]} Qc8 {[%emt 0:08:25]} 16. Bd4 {[%emt 0:03:11]} Bf8 {[%emt 0:01:50]} 17. Qg3 {[%emt 0:00:38]} c5 {[%emt 0:13:46]} 18. Be3 {[%emt 0:00:53]} Nb6 {[%emt 0:00:41]} 19. Na5 {[%emt 0:05:12]} Nxc4 {[%emt 0:00:17]} 20. Nxc4 {[%emt 0:00:05]} Bxc4 {[%emt 0:00:05]} 21. e5 {[%emt 0:01:32]} Qe6 {[%emt 0:03:31]} 22. f4 {[%emt 0:00:45]} Red8 {[%emt 0:03:07]} 23. Qf3 {[%emt 0:00:19]} b5 {[%emt 0:00:20]} 24. Rxd8 Rxd8 {[%emt 0:00:01]} 25. Rd1 {[%emt 0:00:41]} Rxd1+ {[%emt 0:01:13]} 26. Qxd1 {[%emt 0:00:15]} Qc6 {[%emt 0:00:34]} 27. b3 Be6 {[%emt 0:00:10]} 28. Qd8 {[%emt 0:01:30]} Qd7 {[%emt 0:00:45]} 29. Qxd7 Bxd7 {[%emt 0:00:01]} 30. Ne4 Bc6 31. Nxc5 {[%emt 0:01:55]} Bxg2 {[%emt 0:00:02]} 32. b4 {[%emt 0:00:20]} Bxc5 {[%emt 0:02:02]} 1/2-1/2

[Event "3rd Memorial Warakomska 2019"]
[Site "Suwalki"]
[Date "2019.08.06"]
[Round "2.4"]
[White "Lewtak, Damian"]
[Black "Shyam, Sundar M."]
[Result "1/2-1/2"]
[ECO "A06"]
[WhiteElo "2354"]
[BlackElo "2520"]
[Annotator "ChessBase"]
[PlyCount "56"]
[EventDate "2019.08.05"]
[EventType "swiss"]
[EventCountry "POL"]
[SourceTitle "playchess.com"]
[Source "ChessBase"]
[SourceQuality "1"]
[TimeControl "40/5400+30:1800+30"]

1. Nf3 {[%emt 0:00:00]} d5 {[%emt 0:00:09]} 2. b3 {[%emt 0:01:39]} Bg4 {[%emt 0:01:23]} 3. e3 {[%emt 0:02:23]} e5 {[%emt 0:02:53]} 4. h3 {[%emt 0:01:00]} Bxf3 5. Qxf3 {[%emt 0:00:16]} Nf6 {[%emt 0:08:52]} 6. Bb2 {[%emt 0:01:57]} Bd6 {[%emt 0:05:12]} 7. Nc3 {[%emt 0:19:28]} c6 {[%emt 0:00:59]} 8. e4 {[%emt 0:02:24]} d4 {[%emt 0:31:45]} 9. Ne2 {[%emt 0:00:28]} a5 {[%emt 0:00:04]} 10. c3 {[%emt 0:08:31]} c5 {[%emt 0:01:19]} 11. Ng3 {[%emt 0:02:32]} g6 {[%emt 0:01:38]} 12. a4 {[%emt 0:03:36]} O-O {[%emt 0:01:46]} 13. Bb5 {[%emt 0:06:46]} Na6 {[%emt 0:00:13]} 14. O-O {[%emt 0:00:53]} Nc7 {[%emt 0:01:17]} 15. Bc4 {[%emt 0:02:28]} Qe7 {[%emt 0:00:33]} 16. cxd4 {[%emt 0:05:16]} cxd4 {[%emt 0:04:21]} 17. d3 {[%emt 0:02:36]} Nfe8 {[%emt 0:00:04]} 18. Bc1 {[%emt 0:01:11]} Ng7 {[%emt 0:00:04]} 19. Bh6 {[%emt 0:10:18]} Qh4 {[%emt 0:00:15]} 20. Bxg7 {[%emt 0:02:43]} Kxg7 {[%emt 0:00:29]} 21. Rfc1 {[%emt 0:02:41]} h5 {[%emt 0:04:08]} 22. Rc2 {[%emt 0:02:08]} Qe7 {[%emt 0:05:13]} 23. Nf1 {[%emt 0:02:27]} Rac8 {[%emt 0:00:34]} 24. Qe2 {[%emt 0:02:34]} Bb4 {[%emt 0:01:04]} 25. Rac1 {[%emt 0:02:09]} Ba3 {[%emt 0:12:17]} 26. Ra1 {[%emt 0:00:37]} Bb4 {[%emt 0:00:35]} 27. Rac1 {[%emt 0:00:05]} Ba3 {[%emt 0:02:37]} 28. Ra1 {[%emt 0:00:06]} Bb4 {[%emt 0:00:02]} 1/2-1/2

[Event "3rd Memorial Warakomska 2019"]
[Site "Suwalki"]
[Date "2019.08.06"]
[Round "2.5"]
[White "Jakubowski, Krzysztof"]
[Black "Kaczmarek, Aleksander"]
[Result "0-1"]
[ECO "A28"]
[WhiteElo "2528"]
[BlackElo "2389"]
[Annotator "ChessBase"]
[PlyCount "116"]
[EventDate "2019.08.05"]
[EventType "swiss"]
[EventCountry "POL"]
[SourceTitle "playchess.com"]
[Source "ChessBase"]
[SourceQuality "1"]
[TimeControl "40/5400+30:1800+30"]

1. c4 {[%emt 0:00:00]} e5 {[%emt 0:07:40]} 2. Nc3 {[%emt 0:00:00]} Nf6 {[%emt 0:01:12]} 3. Nf3 {[%emt 0:00:23]} Nc6 {[%emt 0:00:50]} 4. e3 {[%emt 0:00:24]} Be7 {[%emt 0:06:32]} 5. a3 {[%emt 0:02:04]} O-O {[%emt 0:00:52]} 6. b4 {[%emt 0:00:37]} d6 {[%emt 0:05:36]} 7. Qc2 {[%emt 0:05:24]} Re8 {[%emt 0:04:15]} 8. Bb2 {[%emt 0:17:04]} Bf8 {[%emt 0:03:52]} 9. Bd3 {[%emt 0:02:47]} h6 {[%emt 0:09:24]} 10. h3 {[%emt 0:05:29]} Qe7 {[%emt 0:04:22]} 11. Ne4 {[%emt 0:02:37]} g6 {[%emt 0:11:31]} 12. Nxf6+ {[%emt 0:05:19]} Qxf6 {[%emt 0:00:05]} 13. Be4 {[%emt 0:00:05]} Bg7 {[%emt 0:02:49]} 14. O-O {[%emt 0:06:39]} Qe7 {[%emt 0:05:41]} 15. d4 {[%emt 0:07:55]} Nd8 {[%emt 0:07:22]} 16. dxe5 {[%emt 0:00:31]} dxe5 {[%emt 0:01:07]} 17. c5 {[%emt 0:02:17]} c6 {[%emt 0:01:34]} 18. Nd2 {[%emt 0:03:21]} f5 {[%emt 0:01:33]} 19. Bd3 {[%emt 0:00:27]} Kh7 {[%emt 0:00:58]} 20. Nc4 {[%emt 0:06:32]} Nf7 {[%emt 0:00:04]} 21. Rfd1 {[%emt 0:00:06]} Be6 {[%emt 0:02:32]} 22. e4 {[%emt 0:00:49]} f4 {[%emt 0:00:28]} 23. Be2 {[%emt 0:00:09]} Qg5 {[%emt 0:00:30]} 24. Rd3 {[%emt 0:00:33]} Re7 {[%emt 0:01:12]} 25. Rad1 {[%emt 0:01:10]} Rf8 {[%emt 0:00:25]} 26. a4 {[%emt 0:08:10]} Qh4 {[%emt 0:00:36]} 27. Nd2 {[%emt 0:02:59]} Ng5 {[%emt 0:02:42]} 28. Nf3 {[%emt 0:01:20]} Nxf3+ {[%emt 0:00:06]} 29. Bxf3 {[%emt 0:00:08]} h5 {[%emt 0:00:17]} 30. Be2 {[%emt 0:17:18]} Ref7 {[%emt 0:02:52]} 31. Bf1 {[%emt 0:01:10]} f3 {[%emt 0:03:47]} 32. g3 {[%emt 0:00:08]} Qxe4 {[%emt 0:00:29]} 33. Qd2 {[%emt 0:00:04]} Qf5 {[%emt 0:02:59]} 34. Rd6 Re7 {[%emt 0:04:54]} 35. b5 {[%emt 0:01:42]} Bb3 {[%emt 0:01:25]} 36. Ra1 {[%emt 0:00:54]} Bd5 {[%emt 0:00:29]} 37. a5 {[%emt 0:00:29]} a6 {[%emt 0:03:38]} 38. bxa6 {[%emt 0:01:08]} bxa6 {[%emt 0:00:03]} 39. Re1 {[%emt 0:00:40]} Bh6 {[%emt 0:01:38]} 40. Qc3 {[%emt 0:00:00]} Bg7 {[%emt 0:00:00]} 41. Qb4 {[%emt 0:08:26]} Rff7 {[%emt 0:06:08]} 42. Bxa6 {[%emt 0:01:09]} Ra7 {[%emt 0:06:23]} 43. Bf1 {[%emt 0:01:18]} Rab7 {[%emt 0:00:06]} 44. Qa3 {[%emt 0:04:08]} Qg5 {[%emt 0:05:01]} 45. Rd1 {[%emt 0:07:28]} Rb3 {[%emt 0:02:55]} 46. Qa1 {[%emt 0:00:08]} h4 {[%emt 0:00:43]} 47. Bc1 {[%emt 0:01:33]} Qxg3+ {[%emt 0:00:56]} 48. Kh1 {[%emt 0:02:44]} Qxf2 {[%emt 0:00:15]} 49. Qa4 {[%emt 0:00:04]} Qg3 {[%emt 0:07:34]} 50. R6xd5 {[%emt 0:02:23]} f2 {[%emt 0:00:33]} 51. Qg4 {[%emt 0:04:14]} cxd5 {[%emt 0:00:36]} 52. a6 {[%emt 0:00:05]} e4 {[%emt 0:03:09]} 53. Bg5 {[%emt 0:00:44]} Qxg4 {[%emt 0:01:27]} 54. hxg4 {[%emt 0:00:04]} d4 {[%emt 0:00:23]} 55. c6 {[%emt 0:01:44]} Be5 {[%emt 0:01:43]} 56. Ra1 {[%emt 0:01:16]} Rg3 {[%emt 0:00:33]} 57. Bg2 {[%emt 0:00:49]} e3 {[%emt 0:00:30]} 58. Bxh4 {[%emt 0:00:05]} Rxg4 {[%emt 0:00:18]} 0-1

[Event "3rd Memorial Warakomska 2019"]
[Site "Suwalki"]
[Date "2019.08.06"]
[Round "2.6"]
[White "Zylka, Stanislaw"]
[Black "Zakhartsov, Viacheslav V."]
[Result "1/2-1/2"]
[ECO "B81"]
[WhiteElo "2308"]
[BlackElo "2518"]
[Annotator "ChessBase"]
[PlyCount "96"]
[EventDate "2019.08.05"]
[EventType "swiss"]
[EventCountry "POL"]
[SourceTitle "playchess.com"]
[Source "ChessBase"]
[SourceQuality "1"]
[TimeControl "40/5400+30:1800+30"]

1. e4 {[%emt 0:00:00]} c5 {[%emt 0:00:00]} 2. Nf3 {[%emt 0:00:00]} e6 {[%emt 0:00:00]} 3. d4 {[%emt 0:00:00]} cxd4 {[%emt 0:00:00]} 4. Nxd4 {[%emt 0:00:08]} Nf6 {[%emt 0:00:00]} 5. Nc3 {[%emt 0:00:16]} d6 {[%emt 0:00:00]} 6. g4 {[%emt 0:02:19]} h6 {[%emt 0:00:15]} 7. Rg1 {[%emt 0:01:06]} Nc6 {[%emt 0:00:56]} 8. Be3 {[%emt 0:00:30]} a6 {[%emt 0:05:11]} 9. h4 {[%emt 0:01:25]} h5 {[%emt 0:06:34]} 10. gxh5 {[%emt 0:01:45]} Rxh5 {[%emt 0:03:13]} 11. Bg5 {[%emt 0:06:04]} Rh8 {[%emt 0:00:49]} 12. Qd2 {[%emt 0:02:06]} Qb6 {[%emt 0:01:26]} 13. Nb3 {[%emt 0:02:13]} Bd7 {[%emt 0:00:47]} 14. O-O-O {[%emt 0:02:56]} Qc7 {[%emt 0:02:20]} 15. Be2 {[%emt 0:04:23]} b5 {[%emt 0:03:02]} 16. a3 {[%emt 0:15:40]} Rb8 {[%emt 0:08:56]} 17. Kb1 {[%emt 0:07:57]} b4 {[%emt 0:05:44]} 18. axb4 {[%emt 0:00:17]} Nxb4 {[%emt 0:01:21]} 19. f4 {[%emt 0:03:59]} Qb6 {[%emt 0:11:20]} 20. e5 {[%emt 0:23:20]} Nfd5 {[%emt 0:06:06]} 21. Nxd5 {[%emt 0:01:40]} Nxd5 {[%emt 0:00:51]} 22. f5 {[%emt 0:01:21]} dxe5 {[%emt 0:05:10]} 23. fxe6 {[%emt 0:00:26]} Bxe6 {[%emt 0:01:58]} 24. Bc4 {[%emt 0:05:48]} Nf6 {[%emt 0:02:03]} 25. Bxe6 {[%emt 0:07:47]} Qxe6 {[%emt 0:00:07]} 26. Qa5 {[%emt 0:02:14]} Bb4 {[%emt 0:09:24]} 27. Qa4+ {[%emt 0:04:52]} Kf8 {[%emt 0:04:15]} 28. Na5 {[%emt 0:00:29]} Bxa5 {[%emt 0:03:52]} 29. Qxa5 {[%emt 0:00:06]} Ne8 {[%emt 0:01:06]} 30. Qc5+ {[%emt 0:02:54]} Kg8 {[%emt 0:00:14]} 31. b3 {[%emt 0:00:32]} f6 {[%emt 0:02:22]} 32. Bc1 Rxh4 {[%emt 0:11:07]} 33. Ba3 {[%emt 0:00:15]} Rc8 {[%emt 0:02:35]} 34. Qf8+ {[%emt 0:00:50]} Kh7 {[%emt 0:00:02]} 35. Rh1 {[%emt 0:00:40]} Rh3 {[%emt 0:00:03]} 36. Qe7 {[%emt 0:00:49]} Qf5 {[%emt 0:00:14]} 37. Rxh3+ {[%emt 0:00:29]} Qxh3 {[%emt 0:00:01]} 38. Qb7 {[%emt 0:00:02]} Qe6 {[%emt 0:01:12]} 39. Rh1+ {[%emt 0:00:28]} Kg8 {[%emt 0:00:04]} 40. Qb4 {[%emt 0:00:00]} Nc7 {[%emt 0:00:00]} 41. Qh4 {[%emt 0:04:45]} f5 {[%emt 0:05:30]} 42. Qh7+ {[%emt 0:05:21]} Kf7 {[%emt 0:00:04]} 43. Rh5 {[%emt 0:01:12]} Nd5 {[%emt 0:01:00]} 44. Rxf5+ {[%emt 0:00:17]} Nf6 {[%emt 0:00:02]} 45. Qh5+ {[%emt 0:02:25]} Kg8 {[%emt 0:00:04]} 46. Rxe5 {[%emt 0:00:58]} Qc6 {[%emt 0:00:53]} 47. Qf5 {[%emt 0:01:48]} Re8 {[%emt 0:01:53]} 48. Rxe8+ {[%emt 0:00:18]} Qxe8 {[%emt 0:00:48]} 1/2-1/2

[Event "3rd Memorial Warakomska 2019"]
[Site "Suwalki"]
[Date "2019.08.06"]
[Round "2.7"]
[White "Greenfeld, Alon"]
[Black "Kowalski, Igor"]
[Result "1-0"]
[ECO "A05"]
[WhiteElo "2522"]
[BlackElo "2320"]
[Annotator "ChessBase"]
[PlyCount "75"]
[EventDate "2019.08.05"]
[EventType "swiss"]
[EventCountry "POL"]
[SourceTitle "playchess.com"]
[Source "ChessBase"]
[SourceQuality "1"]
[TimeControl "40/5400+30:1800+30"]

1. Nf3 {[%emt 0:04:13]} Nf6 {[%emt 0:00:00]} 2. c4 {[%emt 0:00:40]} g6 {[%emt 0:00:00]} 3. Nc3 {[%emt 0:00:48]} Bg7 {[%emt 0:00:00]} 4. g3 {[%emt 0:01:13]} c6 {[%emt 0:01:37]} 5. e4 {[%emt 0:01:23]} O-O {[%emt 0:05:40]} 6. Bg2 {[%emt 0:03:02]} d5 {[%emt 0:01:21]} 7. cxd5 {[%emt 0:03:47]} cxd5 {[%emt 0:00:05]} 8. e5 {[%emt 0:00:06]} Ne4 {[%emt 0:00:16]} 9. O-O {[%emt 0:00:27]} Nc6 {[%emt 0:02:13]} 10. d4 {[%emt 0:00:12]} Nxc3 {[%emt 0:01:31]} 11. bxc3 {[%emt 0:01:02]} Na5 {[%emt 0:00:08]} 12. Bf4 {[%emt 0:13:57]} Bf5 {[%emt 0:03:34]} 13. Nh4 {[%emt 0:25:17]} Be6 {[%emt 0:00:46]} 14. Qd3 {[%emt 0:05:24]} Rc8 {[%emt 0:07:46]} 15. Bd2 {[%emt 0:05:49]} f5 {[%emt 0:13:25]} 16. Nf3 {[%emt 0:06:44]} Bd7 {[%emt 0:13:04]} 17. h4 {[%emt 0:03:03]} Nc4 {[%emt 0:09:25]} 18. Rfb1 {[%emt 0:04:26]} b6 {[%emt 0:01:10]} 19. h5 {[%emt 0:02:00]} gxh5 {[%emt 0:14:07]} 20. Bg5 {[%emt 0:01:58]} Qe8 {[%emt 0:05:18]} 21. Nh4 {[%emt 0:03:31]} e6 {[%emt 0:00:06]} 22. Bf3 {[%emt 0:00:44]} Na3 {[%emt 0:03:31]} 23. Rb3 {[%emt 0:01:23]} Bb5 {[%emt 0:01:08]} 24. Qd2 {[%emt 0:04:10]} Nc4 {[%emt 0:00:25]} 25. Qf4 {[%emt 0:01:07]} Ba4 {[%emt 0:00:49]} 26. Bf6 {[%emt 0:04:03]} Bxb3 {[%emt 0:05:13]} 27. axb3 {[%emt 0:00:48]} Na5 {[%emt 0:00:12]} 28. b4 {[%emt 0:00:42]} Nc6 {[%emt 0:00:09]} 29. Qg5 {[%emt 0:00:22]} Rc7 {[%emt 0:00:03]} 30. Bxh5 {[%emt 0:00:41]} Qc8 {[%emt 0:04:00]} 31. Ng2 Nd8 {[%emt 0:05:08]} 32. Nf4 {[%emt 0:00:29]} Rb7 {[%emt 0:02:12]} 33. Kg2 {[%emt 0:00:52]} Qxc3 {[%emt 0:00:58]} 34. Rd1 {[%emt 0:00:35]} Rd7 {[%emt 0:00:36]} 35. Bf3 {[%emt 0:00:40]} h6 {[%emt 0:00:43]} 36. Qg6 {[%emt 0:00:11]} Qxb4 {[%emt 0:00:39]} 37. Nh5 {[%emt 0:00:29]} Rff7 {[%emt 0:00:19]} 38. Bxg7 {[%emt 0:00:28]} 1-0

[Event "3rd Memorial Warakomska 2019"]
[Site "Suwalki"]
[Date "2019.08.06"]
[Round "2.8"]
[White "Wiewiora, Eneasz"]
[Black "Sadzikowski, Daniel"]
[Result "1/2-1/2"]
[ECO "C55"]
[WhiteElo "2344"]
[BlackElo "2503"]
[Annotator "ChessBase"]
[PlyCount "48"]
[EventDate "2019.08.05"]
[EventType "swiss"]
[EventCountry "POL"]
[SourceTitle "playchess.com"]
[Source "ChessBase"]
[SourceQuality "1"]
[TimeControl "40/5400+30:1800+30"]

1. e4 {[%emt 0:06:09]} e5 {[%emt 0:00:13]} 2. Nf3 {[%emt 0:00:05]} Nc6 {[%emt 0:00:05]} 3. Bc4 {[%emt 0:01:13]} Nf6 {[%emt 0:00:21]} 4. d3 {[%emt 0:00:46]} h6 {[%emt 0:00:16]} 5. c3 {[%emt 0:00:34]} d6 {[%emt 0:00:13]} 6. O-O {[%emt 0:03:59]} g5 {[%emt 0:00:07]} 7. Re1 {[%emt 0:00:13]} Bg7 {[%emt 0:01:57]} 8. a4 {[%emt 0:01:37]} a5 {[%emt 0:02:51]} 9. Na3 {[%emt 0:03:53]} O-O {[%emt 0:27:39]} 10. Nc2 {[%emt 0:26:43]} d5 {[%emt 0:03:52]} 11. exd5 {[%emt 0:01:13]} Nxd5 {[%emt 0:00:02]} 12. d4 {[%emt 0:01:17]} Nb6 {[%emt 0:06:25]} 13. Bb3 {[%emt 0:01:58]} Re8 {[%emt 0:12:13]} 14. Nxe5 {[%emt 0:09:34]} Nxe5 {[%emt 0:04:35]} 15. dxe5 {[%emt 0:00:54]} Qxd1 {[%emt 0:00:05]} 16. Rxd1 {[%emt 0:00:23]} Be6 {[%emt 0:04:44]} 17. Bxe6 {[%emt 0:08:43]} Rxe6 {[%emt 0:00:17]} 18. f4 {[%emt 0:00:40]} gxf4 {[%emt 0:01:40]} 19. Nd4 {[%emt 0:06:55]} Rxe5 {[%emt 0:00:02]} 20. Bxf4 {[%emt 0:00:12]} Rc5 {[%emt 0:00:01]} 21. Nb5 {[%emt 0:02:03]} Rc8 {[%emt 0:07:56]} 22. Be3 {[%emt 0:09:27]} Re5 {[%emt 0:00:06]} 23. Bxb6 {[%emt 0:00:14]} cxb6 {[%emt 0:00:01]} 24. Re1 {[%emt 0:03:56]} Rc4 {[%emt 0:02:39]} 1/2-1/2